{"text_format":"3","workbook":"xlsx","n_sheets":1,"sheets":["FINAL 221"],"not_rendered":{"defined_names":1},"read":"whole","date_system":"1900"}

{"sheet":"FINAL 221","index":0,"n_rows":226,"n_cols":18,"rows_kept":226,"merged":[[0,0,1,17],[175,20,183,20],[175,21,183,21],[229,14,229,17]]}
["FINAL LIST OF JOB ROLES FOR PMKVY (2016-20) "]
[]
["S.No","SSC","Job Role/QP Name","QP Code","NSQF Level ","Theory","Practical","Additional Duration: Entrepreneurship and Softskills","Additional Duration: Digital Literacy - Not to be counted in total hours - trainee will undergo this on his/her own via online - available in English and Regional Languages at indiaskilsonline.com","Training Duration (excluding Digital Literacy)","Content  Available","Common Norms Category","Classification -                  A: Regular Classroom & lab                                                    C: High Capex ","Training involving Hi capex ","Manufacturing / Service","Technical / Non-Technical","Minimum no of hours of training per day at center ","Industry visit/OJT -Not applicable (NA)"]
[1,"Agriculture","Animal Health Worker","AGR/Q4804",3,120,180,40,20,{"$f":"SUM(F4:H4)","v":340},"Yes","I","A",null,"Service ","Non-Technical",4,8]
[2,"Agriculture","Aquaculture worker","AGR/Q4904",3,80,120,40,20,{"$f":"SUM(F5:H5)","v":240},"Yes","I","A",null,"Service ","Non-Technical",4,8]
[3,"Agriculture","Green House Operator","AGR/Q1003",3,90,110,40,20,240,"Yes","I","C","At site ","Manufacturing","Technical",4,8]
[4,"Agriculture","Dairy Farmer/ Entrepreneur","AGR/Q4101",4,80,120,40,20,240,"Yes","I","A",null,"Service ","Non-Technical",4,8]
[5,"Agriculture","Tractor operator ","AGR/Q1101",4,88,112,40,20,240,"Yes","I","A",null,"Manufacturing","Technical",4,8]
[6,"Agriculture","Gardener","AGR/Q0801",4,130,170,40,20,340,"Yes","II","A",null,"Service ","Non-Technical",4,8]
[7,"Agriculture","Micro Irrigation Technician","AGR/Q1002",4,80,120,40,20,240,"Yes","I","A",null,"Manufacturing","Technical",4,8]
[8,"Agriculture","Organic grower","AGR/Q1201",4,80,120,40,20,240,"Yes","II","A",null,"Service ","Non-Technical",4,8]
[9,"Agriculture","Quality Seed Grower","AGR/Q7101",4,90,110,40,20,240,"Yes","II","A",null,"Service ","Non-Technical",4,8]
[10,"Agriculture","Small poultry farmer","AGR/Q4306",4,100,140,40,20,280,"Yes","II","A",null,"Service ","Non-Technical",4,8]
[11,"Apparel, Madeups & Home Furnishing","In-line Checker","AMH/Q0102",3,85,185,40,20,310,"Yes","I","A ","NA","Manufacturing","Technical",8,4]
[12,"Apparel, Madeups & Home Furnishing","Packer","AMH/Q1407",3,60,120,40,20,220,"Yes","I","A","NA","Manufacturing","Technical",8,4]
[13,"Apparel, Madeups & Home Furnishing","Sewing Machine Operator","AMH/Q0301",4,80,190,40,20,310,"Yes","I","A","NA","Manufacturing","Technical",8,4]
[14,"Apparel, Madeups & Home Furnishing","Sewing Machine Operator - knits","AMH/Q0305",4,90,210,40,20,340,"Yes","I","A","NA","Manufacturing","Technical",8,4]
[15,"Apparel, Madeups & Home Furnishing","Self Employed Tailor","AMH/Q1947",4,80,260,40,20,380,"Yes","I","A","NA","Manufacturing","Technical",8,4]
[16,"Apparel, Madeups & Home Furnishing","Export Assistant","AMH/Q1601",4,90,180,40,20,310,"Yes","I","A","NA","Manufacturing","Technical",8,4]
[17,"Apparel, Madeups & Home Furnishing","Hand Embroiderer","AMH/Q1001",4,60,140,40,20,240,"Yes","I","A","NA","Manufacturing","Technical",8,4]
[18,"Apparel, Madeups & Home Furnishing","Pressman","AMH/Q0401",4,85,185,40,20,310,"Yes","I","A","NA","Manufacturing","Technical",8,4]
[19,"Apparel, Madeups & Home Furnishing","Washing Machine Operator","AMH/Q1810",4,90,210,40,20,340,"Yes","I","A","NA","Manufacturing","Technical",8,4]
[20,"Automotive ","Machining and Quality Technician","ASC/Q3509",3,175,300,40,20,515,"Yes ","I","C","NA","Manufacturing","Technical",8,40]
[21,"Automotive ","Welding and Quality Technician","ASC/Q3109",3,175,300,40,20,515,"Yes ","I","C","NA","Manufacturing","Technical",8,40]
[22,"Automotive ","Dealership Telecaller Sales Executive","ASC/Q1011",4,150,350,40,20,540,"Yes ","II","A","NA","Manufacturing","Non-Technical",8,50]
[23,"Automotive ","Dealership Sales and Value Aadded Services Executive","ASC/Q1012",4,175,300,40,20,515,"Yes ","II","A","NA","Manufacturing","Non-Technical",8,50]
[24,"Automotive ","Showroom Hostess - Customer Relationship Executive","ASC/Q1111",4,175,275,40,20,490,"Yes ","II","A","NA","Manufacturing","Non-Technical",8,75]
[25,"Automotive ","Automotive Service Technician (Two and Three Wheelers)","ASC/Q1411",4,175,275,40,20,490,"Yes ","I","C","NA","Manufacturing","Technical",8,50]
[26,"Automotive ","Car Washer and Assistant Service Technician ","ASC/Q1417",3,175,275,40,20,490,"Yes ","I","C","NA","Manufacturing","Technical",8,50]
[27,"Automotive ","Chauffeur / Taxi Driver","ASC/Q9714",4,160,240,40,20,440,"Yes ","I","C","NA","Manufacturing","Technical",8,100]
[28,"Automotive ","Auto / E Rickshaw Driver & Service Technician ","ACS/Q9719",4,200,300,40,20,540,"Yes ","I","C","NA","Manufacturing","Technical",8,120]
[29,"Automotvie","Commercial Vehicle Driver Level 4","ASC/Q9703",4,160,240,40,20,400,"Yes ","I","C","NA","Manufacturing ","Technical",8,100]
[30,"Beauty and Wellness","Assistant Beauty Therapist","BWS/Q0101",3,50,200,40,20,290,"Yes","II","A","NA","Service ","Technical ",4,24]
[31,"Beauty and Wellness","Assistant Hair Stylist","BWS/Q0201",3,50,250,40,20,340,"Yes","II","A","NA","Service ","Technical ",4,32]
[32,"Beauty and Wellness","Assistant Nail Technician","BWS/Q0401",3,30,170,40,20,240,"Yes","II","A","NA","Manufacturing","Non-Technical",4,32]
[33,"Beauty and Wellness","Assistant Spa Therapist","BWS/Q1001 ",3,50,250,40,20,340,"Yes","II","A","NA","Manufacturing","Non-Technical",4,40]
[34,"Beauty and Wellness","Pedicurist & Manicurist","BWS/Q0402",3,30,220,40,20,290,"Yes","II","A","NA","Manufacturing","Non-Technical",4,24]
[35,"Beauty and Wellness","Beauty Therapist","BWS/Q0102",4,50,300,40,20,390,"Yes","II","A","NA","Manufacturing","Technical",4,40]
[36,"Beauty and Wellness","Hair Stylist","BWS/Q0202",4,75,275,40,20,390,"Yes","II","A","NA","Manufacturing","Technical",4,48]
[37,"BFSI","Business Correspondence & Business Facilitator","BSC/Q0301",3,30,120,40,20,190,"Yes","III","A","NA","Service","Non-Technical",4,8]
[38,"BFSI","Accounts Executive - Accounts Payable and Receivable","BSC/Q0901",4,30,120,40,20,190,"Yes","III","A","NA","Service","Non-Technical",4,16]
[39,"BFSI","Mutual Fund Agent ","BSC/Q0601",4,40,160,40,20,240,"Yes","III","A","NA","Service","Non-Technical",4,8]
[40,"BFSI","Life Insurance Agent ","BSC/Q0101",4,50,175,40,20,265,"Yes","III","A","NA","Service","Non-Technical",4,8]
[41,"BFSI","Debt Recovery Agent","BSC/Q0701",4,30,130,40,20,200,"Yes","III","A","NA","Service","Non-Technical",4,8]
[42,"BFSI","Equity Dealer","BSC/Q0201",4,30,130,40,20,200,"Yes","III","A","NA","Service","Non-Technical",4,16]
[43,"Capital Goods","Manual Metal Arc Welding/ Shielded Metal Arc Welding Welder","CSC/Q0204+D16",3,150,350,40,20,540,"Yes","I","A","NA","Manufacturing","Technical",8,16]
[44,"Capital Goods","Fitter – Electrical and Electronic Assembly","CSC/Q0305",3,150,350,40,20,540,"Yes","I","A","NA","Manufacturing","Technical",8,16]
[45,"Capital Goods","Fitter Mechanical Assembly","CSC/Q0304",3,150,350,40,20,540,"Yes","I","A","NA","Manufacturing","Technical",8,16]
[46,"Capital Goods","CNC Operator Turning","CSC/Q0115",3,140,260,40,20,440,"Yes","I","A","NA","Manufacturing","Technical",8,16]
[47,"Capital Goods","Draughtsman – Mechanical","CSC/Q0402",4,100,300,40,20,{"$f":"SUM(F50:H50)","v":440},"Yes","I","A","NA","Manufacturing","Technical",8,16]
[48,"Capital Goods","Fitter Fabrication","CSC/Q0303",3,140,360,40,20,540,"Yes","I","A","NA","Manufacturing","Technical",8,16]
[49,"Construction","Assistant Electrician ","CON/Q0602",3,110,290,40,20,{"$f":"SUM(F52:H52)","v":440},"Yes","I","A","NA","Manufacturing","Technical",8,120]
[50,"Construction","Bar Bender and Steel Fixer ","CON/Q0203",4,80,320,40,20,440,"Yes","I","A","NA","Manufacturing","Technical",8,120]
[51,"Construction","Mason General ","CON/Q0103",4,80,320,40,20,440,"Yes","I","A","NA","Manufacturing","Technical",8,120]
[52,"Construction","Construction Painter & Decorator","CON/Q0503",3,80,320,40,20,440,"Yes","I","A","NA","Manufacturing","Technical",8,120]
[53,"Construction","Mason Tiling ","CON/Q0104",4,90,310,40,20,440,"Yes","I","A","NA","Manufacturing","Technical",8,120]
[54,"Construction","Mason Concrete ","CON/Q0105",3,80,320,40,20,440,"Yes","I","A","NA","Manufacturing","Technical",8,120]
[55,"Construction","Shuttering Carpenter - System ","CON/Q0304",4,80,320,40,20,440,"Yes","I","A","NA","Manufacturing","Technical",8,120]
[56,"Domestic Workers","Child Caretaker","DWC/Q0201",3,80,120,40,20,240,"Yes","II","A","NA","Service","Non-Technical",4,30]
[57,"Domestic Workers","Elderly Caretaker (Non-Clinical)","DWC/Q0801",3,80,120,40,20,240,"Yes","II","A","NA","Service","Non-Technical",4,30]
[58,"Domestic Workers","General Housekeeper","DWC/Q0102",3,80,120,40,20,240,"Yes","II","A","NA","Service","Non-Technical",4,30]
[59,"Domestic Workers","Housekeeper cum cook","DWC/Q0101",3,100,150,40,20,290,"Yes","I","A","NA","Service","Technical",4,40]
[60,"Earthmoving & Infrastructure Building","Junior Batching Plant Operator","IES/Q0117",3,40,110,40,20,190,"Yes","I","C","At site ","Manufacturing","Technical",8,20]
[61,"Earthmoving & Infrastructure Building","Junior Transit Mixer Operator","IES/Q0119",3,40,110,40,20,190,"Yes","I","C","At site ","Manufacturing","Technical",8,20]
[62,"Earthmoving & Infrastructure Building","Junior Backhoe Operator","IES/Q0102",3,40,110,40,20,190,"Yes","I","C","NA","Manufacturing","Technical",8,16]
[63,"Earthmoving & Infrastructure Building","Junior Excavator Operator","IES/Q0104",3,60,110,40,20,210,"Yes","I","C","NA","Manufacturing","Technical",8,16]
[64,"Earthmoving & Infrastructure Building","Junior Operator Crane","IES/Q0111",3,40,110,40,20,190,"Yes","I","C","NA","Manufacturing","Technical",8,16]
[65,"Earthmoving & Infrastructure Building","Junior Mechanic - Engine","IES/Q1102",3,50,110,40,20,200,"Yes","I","C","NA","Manufacturing","Technical",8,16]
[66,"Earthmoving & Infrastructure Building","Junior Mechanic- Hydraulics","IES/Q1104",3,50,110,40,20,200,"Yes","I","C","NA","Manufacturing","Technical",8,16]
[67,"Earthmoving & Infrastructure Building","Junior Mechanic – Elec/Electronics/ Instruments","IES/Q1106",3,50,110,40,20,200,"Yes","I","C","NA","Manufacturing","Technical",8,16]
[68,"Earthmoving & Infrastructure Building","Backhoe Loader Operator","IES/Q0101",4,60,150,40,20,{"$f":"SUM(F71:H71)","v":250},"Yes","I","C","NA","Manufacturing","Technical",8,16]
[69,"Earthmoving & Infrastructure Building","Excavator Operator","IES/Q0103",4,60,150,40,20,250,"Yes","I","C","NA","Manufacturing","Technical",8,16]
[70,"Electronics & Hardware ","DTH Set Top Box Installation & Service Technician","ELE/Q8101",4,120,180,40,20,340,"Yes","I","A","NA","Manufacturing","Technical",8,24]
[71,"Electronics & Hardware ","Field Technician – Computing and Peripherals","ELE/Q4601",4,120,180,40,20,340,"Yes"," I","A","NA","Service","Technical",8,40]
[72,"Electronics & Hardware ","CCTV Installation Technician","ELE/Q4605",4,180,180,40,20,400,"Yes"," I","A","NA","Manufacturing","Technical",8,40]
[73,"Electronics & Hardware ","Solar Panel Installation Technician","ELE/Q5901",4,200,200,40,20,440,"Yes"," I","A","NA","Manufacturing","Technical",8,80]
[74,"Electronics & Hardware ","LED Light Repair Technician","ELE/Q9302",4,180,180,40,20,400,"Yes"," I","A","NA","Service","Technical",8,40]
[75,"Electronics & Hardware ","Mobile Phone Hardware Repair Technician","ELE/Q8104",4,180,180,40,20,400,"Yes"," I","A","NA","Service","Technical",8,40]
[76,"Electronics & Hardware ","Field Technician – Networking and Storage","ELE/Q4606",4,180,180,40,20,400,"Yes"," I","A","NA","Service","Technical",8,40]
[77,"Electronics & Hardware ","Field Technician – Other Home Appliances","ELE/Q3104",4,180,180,40,20,400,"Yes"," I","A","NA","Manufacturing","Technical",8,80]
[78,"Electronics & Hardware ","TV Repair Technician","ELE/Q3101",4,180,180,40,20,400,"Yes"," I","A","NA","Service","Technical",8,40]
[79,"Food Processing","Pickle Making Technician","FIC/Q0102",4,90,150,40,20,280,"Yes"," I","A","NA","Manufacturing","Technical",4,20]
[80,"Food Processing","Jam Jelly & Ketchup Processing  Technician","FIC/Q0103",4,90,150,40,20,280,"Yes"," I","A","NA","Manufacturing","Technical",4,40]
[81,"Food Processing","Craft Baker","FIC/Q5002",4,90,150,40,20,280,"Yes"," I","A","NA","Manufacturing","Technical",4,50]
[82,"Food Processing","Baking Technician","FIC/Q5005",4,90,150,40,20,280,"Yes"," I","A","NA","Manufacturing","Technical",4,30]
[83,"Food Processing","Plant Biscuit Production Specialist","FIC/Q5003",4,90,150,40,20,280,"Yes"," I","A","NA","Manufacturing","Technical",4,30]
[84,"Furniture & Fittings","Carpenter - Wooden Furniture","FFS/Q0102",4,136,172,40,20,348,"Yes","II","A","NA","Manufacturing","technical",4,40]
[85,"Furniture & Fittings","Fitter-Modular Furniture","FFS/Q5702",4,120,180,40,20,340,"Yes","II","A","NA","Manufacturing","technical",4,40]
[86,"Gems and Jewellery","Jewellery Retail - Jewellery Retail Sales Associate","G&J/Q6802",4,65,85,40,20,190,"Yes","II","A","NA","Service","Non-Technical",4,30]
[87,"Gems and Jewellery","Cast and diamonds-set jewellery - Hand Sketch Designer (Basic)","G&J/Q2301",3,24,126,40,20,190,"Yes","I","A","NA","Manufacturing","Technical",4,"NA"]
[88,"Gems and Jewellery","Cast and diamonds-set jewellery - CAD Operator","G&J/Q2303",4,24,216,40,20,280,"Yes","I","A","NA","Manufacturing","Technical",4,"NA"]
[89,"Gems and Jewellery","Diamond Processing - Assorter (Advanced)","G&J/Q3603",4,24,126,40,20,190,"Yes","I","A","NA","Manufacturing","Technical",4,"NA"]
[90,"Gems and Jewellery","Handmade Gold and Gems-set Jewellery - Goldsmith - Components","G&J/Q0603",3,24,126,40,20,190,"Yes","I","A","NA","Manufacturing","Technical",4,"NA"]
[91,"Gems and Jewellery","Handmade Gold and Gems-set Jewellery - Goldsmith - Frame","G&J/Q0604",4,24,126,40,20,190,"Yes","I","A","NA","Manufacturing","Technical",4,"NA"]
[92,"Gems and Jewellery","Handmade Gold and Gems-set Jewellery - Polisher and Cleaner","G&J/Q0701",3,24,126,40,20,190,"Yes","I","A","NA","Manufacturing","Technical",4,"NA"]
[93,"Gems and Jewellery","Cast & Diamonds Set Jewellery - Wax Setter","G&J/Q1701",3,24,126,40,20,190,"Yes","I","A","NA","Manufacturing","Technical",4,"NA"]
[94,"Gems and Jewellery","Diamond Processing - Assorter (Basic)","G&J/Q3601",3,24,126,40,20,190,"Yes","I","A","NA","Manufacturing","Technical",4,"NA"]
[95,"Green Jobs","Wastewater Treatment Plant Helper","SGJ/Q6602",3,50,110,40,20,200,"Yes","III","A & B","NA","Manufacturing","Technical ",4,110]
[96,"Green Jobs","Solar PV Installer (Suryamitra)","SGJ/Q0101",4,115,185,40,20,340,"Yes","I","A","NA","Manufacturing","Technical ",8,60]
[97,"Green Jobs","Solar PV Installer - Electrical","SGJ/Q0102",4,65,135,40,20,240,"Yes","I","A","NA","Manufacturing","Technical ",8,40]
[98,"Green Jobs","Solar PV Installer - Civil","SGJ/Q0103",4,60,120,40,20,220,"Yes","I","A","NA","Manufacturing","Technical ",8,30]
[99,"Green Jobs","Wastewater Treatment Plant Technician","SGJ/Q6601",4,70,130,40,20,240,"Yes","III","A & B","NA","Manufacturing","Technical ",4,130]
[100,"Handicrafts","Bamboo Mat Weaver","HCS/Q8702",3,40,110,40,20,190,"Yes","II","A","NA","Manufacturing ","Technical ",4,"NA"]
[101,"Handicrafts","Handloom Weaver (Carpets)","HCS/Q5412",3,50,100,40,20,190,"Yes","II","A","NA","Manufacturing ","Technical ",4,"NA"]
[102,"Handicrafts","Hand Rolled Agarbatti Maker","HCS/Q7901",3,70,180,40,20,290,"Yes","II","A","NA","Manufacturing ","Technical ",4,"NA"]
[103,"Handicrafts","Bamboo Basket Maker","HCS/Q8704",3,70,170,40,20,280,"Yes","II","A","NA","Manufacturing ","Technical ",4,"NA"]
[104,"Handicrafts","Agarbatti Packer","HCS/Q8002",3,65,155,40,20,260,"Yes","II","A","NA","Manufacturing ","Technical ",4,"NA"]
[105,"Handicrafts","Bamboo Utility Handicraft Assembler","HCS/Q8705",3,70,160,40,20,270,"Yes","II","A","NA","Manufacturing ","Technical ",4,"NA"]
[106,"Handicrafts","Stamping operator","HCS/Q2802",4,64,136,40,20,240,"Yes","II","A","NA","Manufacturing ","Technical ",4,"NA"]
[107,"Handicrafts","Engraving artisan","HCS/Q2902",4,85,195,40,20,320,"Yes","II","A","NA","Manufacturing ","Technical ",4,"NA"]
[108,"Healthcare","Front Line Health Worker ","HSS/Q8601",3,110,315,40,20,465,"Yes","II","A","NA","Service","Technical",4,200]
[109,"Healthcare","Vision Technician","HSS/Q3001",3,110,315,40,20,465,"Yes","I","C","NA","Service","Technical",4,200]
[110,"Healthcare","Pharmacy Assistant","HSS/Q5401",4,110,315,40,20,465,"Yes","II","A","NA","Service","Technical",4,225]
[111,"Healthcare","Emergency Medical Technician-Basic","HSS/Q2301",4,100,260,40,20,400,"Yes","I","C","NA","Service","Technical",4,120]
[112,"Healthcare","Diabetes Educator","HSS/Q8701",4,135,225,40,20,400,"Yes","II","A","NA","Service","Technical",4,120]
[113,"Healthcare","Diet Assistant","HSS/Q5201",4,158,322,40,20,520,"Yes","II","A","NA","Service","Technical",4,180]
[114,"Healthcare","General Duty Assistant","HSS/Q5101",4,100,320,40,20,460,"Yes","II","A","NA","Service","Technical",4,180]
[115,"Healthcare","Home Health Aide","HSS/Q5102",4,120,240,40,20,400,"Yes","II","A","NA","Service","Technical",4,120]
[116,"Iron and Steel","Fitter: Electrical Assembly","ISC/Q1001",3,75,235,40,20,350,"Yes","I","A ","NA","Manufacturing","Technical",4,16]
[117,"Iron and Steel","Fitter: Instrumentation ","ISC/Q1102",3,70,230,40,20,340,"Yes","I","A","NA","Manufacturing","Technical",4,16]
[118,"Iron and Steel","Rigger - Rigging of Heavy Material","ISC/Q0908",3,70,180,40,20,290,"Yes","I","A ","NA","Manufacturing","Technical",4,16]
[119,"Iron and Steel","Iron & Steel – Machinist","ISC/Q0909",3,120,270,40,20,430,"Yes","I","A ","NA","Manufacturing","Technical",4,16]
[120,"Iron and Steel","Bearing Maintenance","ISC/Q0906",3,80,220,40,20,340,"Yes","I","A ","NA","Manufacturing","Technical",4,16]
[121,"Iron and Steel","Fitter: Electronic Assembly","ISC/Q1101",3,80,220,40,20,340,"Yes","I","A","NA","Manufacturing","Technical",4,16]
[122,"Iron and Steel","Fitter: Leveling alignment balancing","ISC/Q0905",3,100,230,40,20,370,"Yes","I","A","NA","Manufacturing","Technical",4,16]
[123,"Iron and Steel","Plasma Cutter","ISC/Q0910",4,68,212,40,20,320,"Yes","I","A","NA","Manufacturing","Technical",4,16]
[124,"Iron and Steel","Gas Tungsten Arc Welding","ISC/Q0911",4,80,300,40,20,420,"Yes","I","C","NA","Manufacturing","Technical",4,24]
[125,"IT/ITes","CRM Domestic Non-Voice","SSC/Q2211",4,100,300,40,20,440,"Yes","II","A","NA","Manufacturing","Technical",8,50]
[126,"IT/ITes","CRM Domestic Voice","SSC/Q2210",4,100,300,40,20,440,"Yes","II","A","NA","Manufacturing","Technical",8,50]
[127,"IT/ITes","Domestic Biometric Data Operator","SSC/Q2213",4,100,300,40,20,440,"Yes","II","A","NA","Manufacturing","Technical",8,50]
[128,"IT/ITes","Domestic Data entry Operator","SSC/Q2212",4,100,300,40,20,440,"Yes","II","A","NA","Service","Technical",8,50]
[129,"IT/ITes","Domestic IT Helpdesk Attendant","SSC/Q0110",4,100,300,40,20,{"$f":"SUM(F132:H132)","v":440},"Yes","II","A","NA","Service","Technical",8,50]
[130,"IT/ITes","Junior Software Developer","SSC/Q0508",4,100,300,40,20,{"$f":"SUM(G132:G132)","v":300},"Yes","II","A","NA","Manufacturing","Technical",8,50]
[131,"Leather","Stitching Operator (Footwear)","LSS/Q2501",4,50,450,40,20,540,"Yes","I","A ","NA","Manufacturing","Technical",4,"40 "]
[132,"Leather","Stitcher (Goods & Garments)","LSS/Q5501",4,30,170,40,20,{"$f":"SUM(F135:H135)","v":240},"Yes","I","A ","NA","Manufacturing","Technical",4,40]
[133,"Leather","Cutter-Goods & Garments","LSS/Q5301 ",4,30,170,40,20,240,"Yes","I","A ","NA","Manufacturing","Technical",4,40]
[134,"Leather","Cutter- Footwear","LSS/Q2301",4,40,460,40,20,540,"Yes","I","C","NA","Manufacturing","Technical",4," 40"]
[135,"Leather","Shaving Operator","LSS/Q0501",4,33,167,40,20,240,"Yes","I","C","NA","Manufacturing","Technical",4," 167"]
[136,"Leather","Skiving Operator (Machine)","LSS/Q2401",4,39,461,40,20,540,"Yes","I","C","NA","Manufacturing","Technical",4," 40"]
[137,"Life Sciences","Store Assistant- Life Sciences","LFS/Q0604",3,130,150,40,20,320,"Yes","I","A","NA","Manufacturing","Non-Technical",8,72]
[138,"Life Sciences","Fitter Mechanical- Life Sciences","LFS/Q0213",3,120,140,40,20,300,"Yes","I","C","At site ","Manufacturing","Technical",8,100]
[139,"Life Sciences","Lab Technician/ Assistant - Life Sciences","LFS/Q0509",3,100,130,40,20,270,"Yes","I","A","NA","Manufacturing","Technical",8,56]
[140,"Life Sciences","Medical Sales Representative","LFS/Q0401",4,160,320,40,20,520,"Yes"," II","A","NA","Service","Technical",8,80]
[141,"Life Sciences","Production/Machine Operator- Life Sciences","LFS/Q0207",4,155,221,40,20,416,"Yes","I","C","At site ","Manufacturing","Technical",8,120]
[142,"Logistics","Warehouse Picker","LSC/Q2102",3,80,190,40,20,310,"Yes"," II","A","NA","Service","Non-Technical",4,30]
[143,"Logistics","Warehouse Packer","LSC/Q2303",3,80,190,40,20,310,"Yes","I","A","NA","Service","Technical",4,30]
[144,"Logistics","Consignment Booking Assistant","LSC/Q1120",3,80,190,40,20,310,"Yes","I","A","NA","Service","Technical",4,30]
[145,"Logistics","Consignment Tracking Executive","LSC/Q1121",3,80,190,40,20,310,"Yes","I","A","NA","Service","Technical",4,30]
[146,"Logistics","Courier Delivery Executive","LSC/Q3023",3,80,190,40,20,310,"Yes","I","A","NA","Service","Technical",4,30]
[147,"Logistics","Documentation Assistant","LSC/Q1122",4,80,190,40,20,310,"Yes","I","A","NA","Service","Technical",4,30]
[148,"Logistics","Inventory Clerk","LSC/Q2108",3,75,175,40,20,{"$f":"SUM(F151:H151)","v":290},"Yes","I","A","NA","Service","Technical",4,30]
[149,"Logistics","Forklift Operator","ASC/Q9707",4,90,210,40,20,340,"Yes","I","C","NA","Service","Technical",4,30]
[150,"Media & Entertainment ","Makeup Artist","MES/Q1801",4,120,120,40,20,280,"Yes","II","A","NA","Service","Non-Technical",4,20]
[151,"Media & Entertainment ","Hairdresser","MES/Q1802",4,120,120,40,20,280,"Yes","II","A","NA","Service","Non-Technical",4,20]
[152,"Media & Entertainment ","Modeller ","MES/Q0401",3,120,120,40,20,280,"Yes","II","A","NA","Service","Technical",4,40]
[153,"Media & Entertainment ","Animator ","MES/Q0701",4,120,120,40,20,280,"Yes","I","A","NA","Service","Technical",4,40]
[154,"Media & Entertainment ","Character Designer","MES/Q0502",4,120,120,40,20,280,"Yes","II","A","NA","Service","Non-Technical",4,40]
[155,"Media & Entertainment ","Editor","MES/Q1401",4,120,120,40,20,280,"Yes","II","A","NA","Service","Technical",4,40]
[156,"Media & Entertainment ","Rotoartist","MES/Q3504",4,120,120,40,20,280,"Yes","II","A","NA","Service","Technical",4,40]
[157,"Media & Entertainment ","Sound Editor","MES/Q3404",4,120,120,40,20,280,"Yes","II","A","NA","Service","Technical",4,40]
[158,"Mining","Mining - Mechanic / Fitter","MIN/Q0304",3,60,150,40,20,250,"Yes","I","A","NA","Manufacturing","Technical",4,8]
[159,"Mining","Mining - Wire saw Operator ","MIN/Q0203",4,60,150,40,20,250,"Yes","I","A","NA","Manufacturing","Technical",4,8]
[160,"Mining","Mining - Loader Operator","MIN/Q0208",4,40,170,40,20,250,"Yes","I","C","NA","Manufacturing","Technical",4,8]
[161,"Mining","Mining - Bulldozer Operator","MIN/Q0205",4,70,170,40,20,280,"Yes","I","C","NA","Manufacturing","Technical",4,8]
[162,"Mining","Mining - HEMM Mechanic","MIN/Q0433",4,60,150,40,20,250,"Yes","I","C","NA","Manufacturing","Technical",4,8]
[163,"Mining","Mine Electrician","MIN/Q0416",4,60,200,40,20,300,"Yes","I","A","NA","Manufacturing","Technical",8,8]
[164,"Mining","Mine Welder","MIN/Q0423",4,100,250,40,20,390,"Yes","I","A","NA","Manufacturing","Technical",8,8]
[165,"Mining","Mining - Safety Operator","MIN/Q0437",4,60,150,40,20,250,"Yes","I","A","NA","Manufacturing","Technical",8,8]
[166,"Mining","Mining Shot Firer/Blaster","MIN/Q0428",4,60,150,40,20,250,"Yes","I","C","NA","Manufacturing","Technical",4,8]
[167,"Paints & Coatings ","Powder Coater","PCS/Q5102",4,96,144,40,20,280,"Yes","II","A","NA","Manufacturing","Technical",4,4]
[168,"People with Disability","Housekeeping Attendant (Manual Cleaning)","PWT/Q0203",3,75,175,40,20,{"$f":"SUM(F171:H171)","v":290},"Yes","II","A","NA","Service","Non-Technical",8,200]
[169,"People with Disability","Retail Sales Associate ","PWR/Q0104",4,140,140,40,20,{"$f":"SUM(F172:H172)","v":320},"Yes","II","A","NA","Service","Non-Technical",8,140]
[170,"People with Disability","Food & Beverage Service-Steward","PWT/Q0301",4,90,210,40,20,{"$f":"SUM(F173:H173)","v":340},"Yes","II","C","NA","Service","Non-Technical",8,200]
[171,"Plumbing","Plumber General","PSC/Q0104",3,120,200,40,20,{"$f":"SUM(F174:H174)","v":360},"Yes","I","A","NA","Manufacturing","Technical",8,80]
[172,"Plumbing","Plumbing Products Sales Officer","PSC/Q0302",3,120,200,40,20,360,"Yes","I","A","NA","Service","Non-Technical",8,100]
[173,"Plumbing","Plumbing After Sales Service","PSC/Q0303",3,70,130,40,20,240,"Yes","I","A","NA","Manufacturing","Technical",8,50]
[174,"Power","Consumer Energy Meter Technician","PSS/Q0107",3,100,250,40,20,390,"Yes","I","A","NA","Manufacturing","Technical",8,200]
[175,"Power","Assistant Electricity Meter Reader, Billing & Cash Collector","PSS/Q3001",3,65,135,40,20,240,"Yes","I","A","NA","Manufacturing","Technical",8,108]
[176,"Power","Assistant Technician - Street Lighting Solutions (Installation & Maintenance)","PSS/Q6003",3,65,135,40,20,240,"Yes","I","A","NA","Manufacturing","Technical",8,108]
[177,"Power","Distribution Lineman","PSS/Q0102",4,117,233,40,20,390,"Yes","I","A","NA","Service","Technical",8,186]
[178,"Power","Technician – Distribution Transformer Repair","PSS/Q3003",4,120,230,40,20,390,"Yes","I","C","NA","Manufacturing","Technical",8,184]
[179,"Power","Attendant Sub-Station (66/11,33/11 KV)-Power Distribution","PSS/Q3002",4,120,230,40,20,390,"Yes","I","C","NA","Manufacturing","Technical",8,184]
[180,"Retail","Retail Trainee Associate ","RAS/Q0103",3,140,140,40,20,320,"Yes"," II","A","NA","Service","Non-Technical",4,140]
[181,"Retail","Retail Sales Associate ","RAS/Q0104",4,140,140,40,20,320,"Yes"," II","A","NA","Service","Non-Technical",4,140]
[182,"Retail","Distributor Salesman","RAS/Q0604",4,140,140,40,20,320,"Yes"," II","A","NA","Service","Non-Technical",4,140]
[183,"Rubber","Junior Rubber Technician / Technical Assistant","RSC/Q0831",3,140,210,40,20,390,"Yes","I","A","NA","Manufacturing","Technical",4,185]
[184,"Rubber","Mill Operator","RSC/Q0101",4,140,210,40,20,390,"Yes","I","C","NA","Manufacturing","Technical",4,155]
[185,"Rubber","Pneumatic Tyre Moulding Operator","RSC/Q0211",4,140,210,40,20,390,"Yes","I","C","NA","Manufacturing","Technical",4,155]
[186,"Rubber","Compression Moulding Operator ","RSC/Q0205",4,140,210,40,20,390,"Yes","I","C","NA","Manufacturing","Technical",4,155]
[187,"Rubber","Injection Moulding Operator ","RSC/Q0207",4,140,210,40,20,390,"Yes","I","C","NA","Manufacturing","Technical",4,155]
[188,"Rubber","Material Handling and Storage Operator","RSC/Q0108",4,140,210,40,20,390,"Yes","I","A","NA","Manufacturing","Technical",4,130]
[189,"Rubber","Rubber Nursery Worker - General ","RSC/Q6005",4,80,120,40,20,240,"Yes","II","A","NA","Service","Technical",4,105]
[190,"Rubber","General Worker - Rubber Plantation","RSC/Q6107",4,80,120,40,20,240,"Yes","II","A","NA","Service","Technical",4,115]
[191,"Rubber","Latex Harvest Technician (Tapper)","RSC/Q6103",4,80,120,40,20,240,"Yes","II","A ","NA","Service","Technical",4,100]
[192,"Security","Unarmed Security Guard","SSS/Q0101 ",4,80,80,40,20,200,"Yes","II","A","NA","Service","Non-Technical",4,8]
[193,"Sports","Fitness Trainer ","SPF/Q1102",4,60,190,40,20,290,"Yes","I","A","NA","Service","NonTechnical",4,50]
[194,"Sports","Sports Masseur","SPF/Q1103",4,50,150,40,20,240,"Yes","II","A","NA","Service","NonTechnical",4,50]
[195,"Sports","Life Guard-Pool & Beach ","SPF/Q1104",4,60,190,40,20,{"$f":"SUM(F198:H198)","v":290},"Yes","II","A","NA","Service","NonTechnical",4,60]
[196,"Telecom","Distributer Sales Rep","TEL/Q2100",4,80,120,40,20,240,"Yes","II","A","NA","Service","Non-Technical",4,40]
[197,"Telecom","Sales Executive Broadband","TEL/Q0201",4,80,120,40,20,240,"Yes","II","A","NA","Service","Non-Technical",4,40]
[198,"Telecom","Customer Care Executive – (Telecom Call Centre)","TEL/Q0100",4,80,120,40,20,240,"Yes","II","A","NA","Service","Non-Technical",4,60]
[199,"Telecom","Telecom -In-store promoter","TEL/Q2101",4,80,120,40,20,240,"Yes","II","A","NA","Service","Non-Technical",4,40]
[200,"Telecom","Field Sales Executive - Telecom Plans and Services","TEL/Q0200",4,80,120,40,20,240,"Yes","II","A","NA","Service","Non-Technical",4,40]
[201,"Telecom","Handset Repair Engineer ","TEL/Q2201",4,120,180,40,20,340,"Yes","II","A","NA","Service","Technical",4,60]
[202,"Telecom","Telecom- Tower Technician","TEL/Q4100",4,120,180,40,20,340,"Yes","I","A","NA","Service","Technical",4,60]
[203,"Telecom","Costomer Care Executive (Relationship Centre)","TEL/Q0101",4,80,120,40,20,240,"Yes","II","A","NA","Service","Non-Technical",4,40]
[204,"Telecom","Optical Fibre Technician","TEL/Q6401",4,150,150,40,20,340,"Yes","I","A","NA","Service","Technical",4,60]
[205,"Telecom","Telecom Terminal Equipment Application Developer (Android) ","TEL/Q2300",4,80,170,40,20,290,"Yes","II","A","NA","Service","Technical",4,"NA"]
[206,"Textiles & Handloom","Ring Frame Doffer","TSC/Q0202",3,100,200,40,20,340,"Yes","I","C","NA","Manufacturing","Technical",4,200]
[207,"Textiles & Handloom","Warper","TSC/Q7302",3,110,190,40,20,340,"Yes","I","A","NA","Manufacturing","Technical",4,190]
[208,"Textiles & Handloom","Autoconer Tenter","TSC/Q0301",4,100,200,40,20,340,"Yes","I","C","NA","Manufacturing","Technical",4,200]
[209,"Textiles & Handloom","Ring Frame Tenter","TSC/Q0201",4,100,200,40,20,340,"Yes","I","C","NA","Manufacturing","Technical",4,200]
[210,"Textiles & Handloom","Stenter Machine Operator","TSC/Q5401",4,75,225,40,20,340,"Yes","I","C","NA","Manufacturing","Technical",4,225]
[211,"Textiles & Handloom","Hank Dyer","TSC/Q7201",4,110,190,40,20,340,"Yes","I","A","NA","Manufacturing","Technical",4,190]
[212,"Textiles & Handloom","Two Shaft Handloom Weaver","TSC/Q7303",4,100,200,40,20,340,"Yes","I","A","NA","Manufacturing","Technical",4,200]
[213,"Tourism and Hospitality","House Keeping Attendant (Manual Cleaning) ","THC/Q0203\\",3,75,175,40,20,290,"Yes","II","A","NA","Service","Non-Technical",4,200]
[214,"Tourism and Hospitality","Home delivery boy ","THC/Q2902",3,50,150,40,20,240,"Yes","II","A","NA","Service","Non-Technical",4,200]
[215,"Tourism and Hospitality","Counter Sales Executive","THC/Q2903",4,70,170,40,20,280,"Yes","II","C","NA","Service","Non-Technical",4,200]
[216,"Tourism and Hospitality","F & B Service: Steward","THC/Q0301",4,90,210,40,20,340,"Yes","II","C","NA","Service","Non-Technical",4,200]
[217,"Tourism and Hospitality","Room Attendant ","THC/Q0202",4,90,210,40,20,340,"Yes","II","A","NA","Service","Non-Technical",4,200]
[218,"Tourism and Hospitality","Front Office Associate","THC/Q0102",4,110,170,40,20,{"$f":"SUM(F221:H221)","v":320},"Yes","II","A","NA","Service","Non-Technical",4,200]
[219,"Tourism and Hospitality","Multi Cuisine Cook ","THC/Q3006",4,200,300,40,20,{"$f":"SUM(F222:H222)","v":540},"Yes","I","C","NA","Manufacturing","Technical",4,400]
[220,"Tourism and Hospitality","Travel Consultant","THC/Q4404",4,70,160,40,20,{"$f":"SUM(F223:H223)","v":270},"Yes","III","A","NA","Service","Non-Technical",4,200]
[221,"Tourism and Hospitality","Street Food Vendor","THSC/Q3007",4,116,174,40,20,{"$f":"SUM(F224:H224)","v":330},"Yes","II","A","NA","Manufacturing","Non-Technical",4,"NA"]
[]
[null,"(*) Note: ","As Digital Literacy is an Online course , and will be self-paced by the candidate throughout the domain course, its duration is not added to the total duration for PMKVY"]